fUSD/lending_fUSD_20240324
["ID","MTS","AMOUNT","RATE_DAILY","PERIOD"]
[320326741,1711291855000,-222.08733814,0.00019346,2]
[320326742,1711291855009,-500.0,0.00019346,2]
[320326743,1711291855020,-500.0,0.00019346,2]
[320326744,1711291855029,-500.0,0.00019346,2]
[320326745,1711291855039,-500.0,0.00019346,2]
[320326746,1711291855049,-500.0,0.00019346,2]
[320326747,1711291855059,-500.0,0.00019346,2]
[320326748,1711291855069,-502.10784979,0.00019346,2]
[320326749,1711291855078,-500.0,0.00019346,2]
[320326750,1711291855088,-500.0,0.00019346,2]
[320326751,1711291855098,-500.0,0.00019346,2]
[320326752,1711291855107,-500.0,0.00019346,2]
[320326753,1711291855117,-500.0,0.00019346,2]
[320326754,1711291855127,-500.0,0.00019346,2]
[320326755,1711291855137,-500.0,0.00019346,2]
[320326756,1711291855147,-500.0,0.00019346,2]
[320326757,1711291855156,-500.0,0.00019346,2]
[320326758,1711291855167,-500.0,0.00019346,2]
[320326759,1711291855176,-500.0,0.00019346,2]
[320326760,1711291855187,-500.0,0.00019346,2]
[320326761,1711291855197,-500.0,0.00019346,2]
[320326762,1711291855206,-500.0,0.00019346,2]
[320326763,1711291855217,-1598.37,0.00019346,2]
[320326764,1711291855226,-500.0,0.00019346,2]
[320326765,1711291855236,-500.0,0.00019346,2]
[320326766,1711291855246,-500.0,0.00019346,2]
[320326767,1711291855256,-500.0,0.00019346,2]
[320326768,1711291855265,-925.83,0.00019411,2]
[320326769,1711291855275,-190.72587101,0.00019416,2]
[320326770,1711291855284,-500.0,0.00019452,2]
[320326771,1711291855294,-500.0,0.00019452,2]
[320326772,1711291855304,-1231.2,0.00019452,2]
[320326773,1711291855313,-500.0,0.00019452,2]
[320326774,1711291855322,-500.0,0.00019452,2]
[320326775,1711291855332,-500.0,0.00019452,2]
[320326776,1711291855341,-500.0,0.00019452,2]
[320326777,1711291855351,-500.0,0.00019452,2]
[320326778,1711291855360,-500.0,0.00019452,2]
[320326779,1711291855370,-500.0,0.00019452,2]
[320326780,1711291855380,-500.0,0.00019452,2]
[320326781,1711291855389,-1400.0,0.00019498,2]
[320326782,1711291855399,-300.0,0.00019498,2]
[320326783,1711291855409,-386.78,0.0001962,2]
[320326784,1711291855418,-500.0,0.0001962,2]
[320326785,1711291855428,-600.46,0.0001962,2]
[320326786,1711291855437,-500.0,0.0001962,2]
[320326787,1711291855446,-500.0,0.0001962,2]
[320326788,1711291855456,-500.0,0.0001962,2]
[320326789,1711291855468,-500.0,0.0001962,2]
[320326790,1711291855478,-500.0,0.0001962,2]
[320326791,1711291855487,-500.0,0.0001962,2]
[320326792,1711291855497,-500.0,0.0001962,2]
[320326793,1711291855506,-500.0,0.0001962,2]
[320326794,1711291855516,-500.0,0.0001962,2]
[320326795,1711291855525,-513.53767729,0.0001962,2]
[320326796,1711291855534,-500.0,0.0001962,2]
[320326797,1711291855544,-500.0,0.0001962,2]
[320326798,1711291855554,-500.0,0.0001962,2]
[320326799,1711291855563,-500.0,0.0001962,2]
[320326800,1711291855573,-500.0,0.0001962,2]
[320326801,1711291855583,-500.0,0.0001962,2]
[320326802,1711291855592,-500.0,0.0001962,2]
[320326803,1711291855602,-500.0,0.0001962,2]
[320326804,1711291855611,-500.0,0.0001962,2]
[320326805,1711291855621,-500.0,0.0001962,2]
[320326806,1711291855630,-500.0,0.0001962,2]
[320326807,1711291855640,-500.0,0.0001962,2]
[320326808,1711291855649,-500.0,0.0001962,2]
[320326809,1711291855659,-500.0,0.0001962,2]
[320326810,1711291855669,-500.0,0.0001962,2]
[320326811,1711291855679,-500.0,0.0001962,2]
[320326812,1711291855688,-500.0,0.0001962,2]
[320326813,1711291855698,-500.0,0.0001962,2]
[320326814,1711291855708,-500.0,0.0001962,2]
[320326815,1711291855718,-500.0,0.0001962,2]
[320326816,1711291855728,-500.0,0.0001962,2]
[320326817,1711291855738,-500.0,0.0001962,2]
[320326818,1711291855747,-500.0,0.0001962,2]
[320326819,1711291855757,-500.0,0.0001962,2]
[320326820,1711291855766,-500.0,0.0001962,2]
[320326821,1711291855775,-500.0,0.0001962,2]
[320326822,1711291855785,-500.0,0.0001962,2]
[320326823,1711291855795,-500.0,0.0001962,2]
[320326824,1711291855805,-500.0,0.0001962,2]
[320326825,1711291855814,-500.0,0.0001962,2]
[320326826,1711291855824,-500.0,0.0001962,2]
[320326827,1711291855833,-500.0,0.0001962,2]
[320326828,1711291855843,-500.0,0.0001962,2]
[320326829,1711291855853,-500.0,0.0001962,2]
[320326830,1711291855862,-500.0,0.0001962,2]
[320326831,1711291855872,-500.0,0.0001962,2]
[320326832,1711291855881,-500.0,0.0001962,2]
[320326833,1711291855890,-500.0,0.0001962,2]
[320326834,1711291855900,-500.0,0.0001962,2]
[320326835,1711291855909,-567.32,0.0001962,2]
[320326836,1711291855919,-500.0,0.0001962,2]
[320326837,1711291855928,-1598.37,0.0001962,2]
[320326838,1711291855937,-500.0,0.0001962,2]
[320326839,1711291855946,-500.0,0.0001962,2]
[320326840,1711291855955,-500.0,0.0001962,2]
[320326841,1711291855965,-157.0,0.0001966,2]
[320326842,1711291855976,-644.91242417,0.00019676,2]
[320326843,1711291855986,-3004.3649,0.00019697,2]
[320326844,1711291855995,-6485.685,0.00019697,2]
[320326845,1711291856005,-2500.0,0.00019698,2]
[320326846,1711291856015,-500.0,0.00019726,2]
[320326847,1711291856025,-500.0,0.00019726,2]
[320326848,1711291856034,-1231.2,0.00019726,2]
[320326849,1711291856043,-500.0,0.00019726,2]
[320326850,1711291856053,-488.22,0.00019726,2]
[320326851,1711291856063,-500.0,0.00019726,2]
[320326852,1711291856074,-500.0,0.00019726,2]
[320326853,1711291856083,-500.0,0.00019726,2]
[320326854,1711291856094,-500.0,0.00019726,2]
[320326855,1711291856104,-500.0,0.00019726,2]
[320326856,1711291856114,-163.89,0.00019746,2]
[320326857,1711291856123,-500.0,0.00019756,2]
[320326858,1711291856133,-500.0,0.00019756,2]
[320326859,1711291856144,-500.0,0.00019756,2]
[320326860,1711291856154,-500.0,0.00019756,2]
[320326861,1711291856163,-500.0,0.00019756,2]
[320326862,1711291856173,-500.0,0.00019756,2]
[320326863,1711291856183,-500.0,0.00019756,2]
[320326864,1711291856193,-500.0,0.00019756,2]
[320326865,1711291856203,-500.0,0.00019756,2]
[320326866,1711291856213,-500.0,0.00019756,2]
[320326867,1711291856222,-500.0,0.00019756,2]
[320326868,1711291856233,-500.0,0.00019756,2]
[320326869,1711291856243,-500.0,0.00019756,2]
[320326870,1711291856253,-500.0,0.00019756,2]
[320326871,1711291856263,-500.0,0.00019756,2]
[320326872,1711291856274,-500.0,0.00019756,2]
[320326873,1711291856283,-500.0,0.00019756,2]
[320326874,1711291856294,-500.0,0.00019756,2]
[320326875,1711291856304,-500.0,0.00019756,2]
[320326876,1711291856315,-500.0,0.00019756,2]
[320326877,1711291856328,-500.0,0.00019756,2]
[320326878,1711291856338,-500.0,0.00019756,2]
[320326879,1711291856348,-500.0,0.00019756,2]
[320326880,1711291856359,-500.0,0.00019756,2]
[320326881,1711291856369,-500.0,0.00019756,2]
[320326882,1711291856379,-500.0,0.00019756,2]
[320326883,1711291856390,-500.0,0.00019756,2]
[320326884,1711291856402,-500.0,0.00019756,2]
[320326885,1711291856415,-500.0,0.00019756,2]
[320326886,1711291856425,-500.0,0.00019756,2]
[320326887,1711291856435,-500.0,0.00019756,2]
[320326888,1711291856448,-696.0,0.00019756,2]
[320326889,1711291856459,-500.0,0.00019756,2]
[320326890,1711291856471,-500.0,0.00019756,2]
[320326891,1711291856676,-500.0,0.00019756,2]
[320326892,1711291856694,-500.0,0.00019756,2]
[320326893,1711291856705,-500.0,0.00019756,2]
[320326894,1711291856716,-3855.0,0.00019756,2]
[320326895,1711291856726,-500.0,0.00019756,2]
[320326896,1711291856737,-500.0,0.00019756,2]
[320326897,1711291856748,-500.0,0.00019756,2]
[320326898,1711291856759,-656.37,0.00019756,2]
[320326899,1711291856769,-500.0,0.00019756,2]
[320326900,1711291856780,-4949.84,0.00019756,2]
[320326901,1711291856790,-714.83,0.00019756,2]
[320326902,1711291856801,-500.0,0.00019756,2]
[320326903,1711291856811,-500.0,0.00019756,2]
[320326904,1711291856821,-500.0,0.00019756,2]
[320326905,1711291856832,-500.0,0.00019756,2]
[320326906,1711291856843,-500.0,0.00019756,2]
[320326907,1711291856854,-500.0,0.00019756,2]
[320326908,1711291856864,-500.0,0.00019756,2]
[320326909,1711291856874,-500.0,0.00019756,2]
[320326910,1711291856885,-500.0,0.00019756,2]
[320326911,1711291856895,-500.0,0.00019756,2]
[320326912,1711291856905,-500.0,0.00019756,2]
[320326913,1711291856917,-500.0,0.00019756,2]
[320326914,1711291856928,-500.0,0.00019756,2]
[320326915,1711291856939,-1141.8,0.00019756,2]
[320326916,1711291856950,-6492.37,0.00019756,2]
[320326917,1711291856959,-500.0,0.00019756,2]
[320326918,1711291856970,-500.0,0.00019756,2]
[320326919,1711291856981,-500.0,0.00019756,2]
[320326920,1711291856991,-500.0,0.00019756,2]
[320326921,1711291857002,-500.0,0.00019756,2]
[320326922,1711291857013,-500.0,0.00019756,2]
[320326923,1711291857022,-500.0,0.00019756,2]
[320326924,1711291857031,-500.0,0.00019756,2]
[320326925,1711291857040,-500.0,0.00019756,2]
[320326926,1711291857049,-500.0,0.00019756,2]
[320326927,1711291857058,-594.56860109,0.00019756,2]
[320326928,1711291857067,-500.0,0.00019756,2]
[320326929,1711291857077,-500.0,0.00019756,2]
[320326930,1711291857087,-962.11,0.00019756,2]
[320326931,1711291857096,-500.0,0.00019756,2]
[320326932,1711291857105,-500.0,0.00019756,2]
[320326933,1711291857115,-216.7699383,0.00019756,2]
[320326934,1711291857125,-500.0,0.00019756,2]
[320326935,1711291857135,-500.0,0.00019756,2]
[320326936,1711291857144,-500.0,0.00019756,2]
[320326937,1711291857154,-500.0,0.00019756,2]
[320326938,1711291857163,-505.9626581,0.00019756,2]
[320326939,1711291857173,-500.0,0.00019756,2]
[320326940,1711291857182,-500.0,0.00019756,2]
[320326941,1711291857192,-500.0,0.00019756,2]
[320326942,1711291857202,-500.0,0.00019756,2]
[320326943,1711291857212,-500.0,0.00019756,2]
[320326944,1711291857221,-500.0,0.00019756,2]
[320326945,1711291857231,-500.0,0.00019756,2]
[320326946,1711291857241,-500.0,0.00019756,2]
[320326947,1711291857250,-500.0,0.00019756,2]
[320326948,1711291857260,-500.0,0.00019756,2]
[320326949,1711291857270,-500.0,0.00019756,2]
[320326950,1711291857279,-1438.12,0.00019756,2]
[320326951,1711291857289,-500.0,0.00019756,2]
[320326952,1711291857299,-1891.3,0.00019756,2]
[320326953,1711291857309,-500.0,0.00019756,2]
[320326954,1711291857318,-500.0,0.00019756,2]
[320326955,1711291857328,-500.0,0.00019756,2]
[320326956,1711291857337,-500.0,0.00019756,2]
[320326957,1711291857347,-1040.49,0.00019756,2]
[320326958,1711291857356,-500.0,0.00019756,2]
[320326959,1711291857366,-500.0,0.00019756,2]
[320326960,1711291857376,-500.0,0.00019756,2]
[320326961,1711291857385,-600.12,0.00019756,2]
[320326962,1711291857395,-500.0,0.00019756,2]
[320326963,1711291857404,-500.0,0.00019756,2]
[320326964,1711291857414,-500.0,0.00019756,2]
[320326965,1711291857423,-500.0,0.00019756,2]
[320326966,1711291857432,-5495.01,0.00019756,2]
[320326967,1711291857441,-1476.55,0.00019756,2]
[320326968,1711291857451,-543.27,0.00019756,2]
[320326969,1711291857461,-500.0,0.00019756,2]
[320326970,1711291857471,-500.0,0.00019756,2]
[320326971,1711291857482,-500.0,0.00019756,2]
[320326972,1711291857492,-500.0,0.00019756,2]
[320326973,1711291857501,-500.0,0.00019756,2]
[320326974,1711291857511,-500.0,0.00019756,2]
[320326975,1711291857521,-500.0,0.00019756,2]
[320326976,1711291857530,-500.0,0.00019756,2]
[320326977,1711291857539,-500.0,0.00019756,2]
[320326978,1711291857548,-500.0,0.00019756,2]
[320326979,1711291857558,-1323.82,0.00019756,2]
[320326980,1711291857569,-500.0,0.00019756,2]
[320326981,1711291857578,-500.0,0.00019756,2]
[320326982,1711291857587,-500.0,0.00019756,2]
[320326983,1711291857597,-500.0,0.00019756,2]
[320326984,1711291857606,-500.0,0.00019756,2]
[320326985,1711291857615,-500.0,0.00019756,2]
[320326986,1711291857624,-500.0,0.00019756,2]
[320326987,1711291857633,-500.0,0.00019756,2]
[320326988,1711291857642,-500.0,0.00019756,2]
[320326989,1711291857652,-500.0,0.00019756,2]
[320326990,1711291857661,-500.0,0.00019756,2]
[320326991,1711291857671,-1357.7,0.00019756,2]
[320326992,1711291857680,-500.0,0.00019756,2]
[320326993,1711291857690,-500.0,0.00019756,2]
[320326994,1711291857699,-500.0,0.00019756,2]
[320326995,1711291857708,-2088.84,0.00019756,2]
[320326996,1711291857718,-500.0,0.00019756,2]
[320326997,1711291857728,-500.0,0.00019756,2]
[320326998,1711291857739,-2670.55,0.00019756,2]
[320326999,1711291857749,-152.91709921,0.00019781,2]
[320327000,1711291857758,-500.0,0.00019797,2]
[320327001,1711291857768,-500.0,0.00019797,2]
[320327002,1711291857777,-885.2,0.00019797,2]
[320327003,1711291857786,-500.0,0.00019797,2]
[320327004,1711291857795,-500.0,0.00019797,2]
[320327005,1711291857805,-772.65,0.00019797,2]
[320327006,1711291857814,-603.1,0.00019797,2]
[320327007,1711291857823,-500.0,0.00019797,2]
[320327008,1711291857832,-500.0,0.00019797,2]
[320327009,1711291857841,-500.0,0.00019797,2]
[320327010,1711291857851,-500.0,0.00019797,2]
[320327011,1711291857860,-618.64,0.00019797,2]
[320327012,1711291857870,-500.0,0.00019797,2]
[320327013,1711291857879,-500.0,0.00019797,2]
[320327014,1711291857888,-500.0,0.00019797,2]
[320327015,1711291857898,-840.57,0.00019797,2]
[320327016,1711291857907,-1781.73,0.00019797,2]
[320327017,1711291857916,-9859.73,0.00019797,2]
[320327018,1711291857925,-1396.19,0.00019797,2]
[320327019,1711291857934,-500.0,0.00019797,2]
[320327020,1711291857944,-500.0,0.00019797,2]
[320327021,1711291857953,-155.93583328,0.00019799,2]
[320327022,1711291857963,-3000.0,0.000198,2]
[320327023,1711291857973,-154.19957694,0.00019805,2]
[320327024,1711291857983,-644.91242417,0.00019866,2]
[320327025,1711291857993,-166.66666667,0.00019875,2]
[320327026,1711291858002,-163.89,0.0001989,2]
[320327027,1711291858011,-500.0,0.00019894,2]
[320327028,1711291858021,-500.0,0.00019894,2]
[320327029,1711291858030,-500.0,0.00019894,2]
[320327030,1711291858039,-500.0,0.00019894,2]
[320327031,1711291858048,-500.0,0.00019894,2]
[320327032,1711291858058,-500.0,0.00019894,2]
[320327033,1711291858067,-509.74,0.00019894,2]
[320327034,1711291858077,-500.0,0.00019894,2]
[320327035,1711291858087,-500.0,0.00019894,2]
[320327036,1711291858096,-500.0,0.00019894,2]
[320327037,1711291858106,-476.36,0.00019894,2]
[320327038,1711291858115,-500.0,0.00019894,2]
[320327039,1711291858124,-500.0,0.00019894,2]
[320327040,1711291858134,-500.0,0.00019894,2]
[320327041,1711291858142,-515.19,0.00019894,2]
[320327042,1711291858152,-500.0,0.00019894,2]
[320327043,1711291858161,-500.0,0.00019894,2]
[320327044,1711291858171,-500.0,0.00019894,2]
[320327045,1711291858180,-500.0,0.00019894,2]
[320327046,1711291858191,-500.0,0.00019894,2]
[320327047,1711291858201,-500.0,0.00019894,2]
[320327048,1711291858210,-305.35,0.00019894,2]
[320327049,1711291858219,-512.19,0.00019894,2]
[320327050,1711291858229,-500.0,0.00019894,2]
[320327051,1711291858238,-500.0,0.00019894,2]
[320327052,1711291858248,-500.0,0.00019894,2]
[320327053,1711291858258,-500.0,0.00019894,2]
[320327054,1711291858267,-500.0,0.00019894,2]
[320327055,1711291858276,-500.0,0.00019894,2]
[320327056,1711291858286,-563.6613153,0.00019894,2]
[320327057,1711291858295,-500.0,0.00019894,2]
[320327058,1711291858304,-500.0,0.00019894,2]
[320327059,1711291858313,-208.9,0.00019894,2]
[320327060,1711291858323,-500.0,0.00019894,2]
[320327061,1711291858333,-500.0,0.00019894,2]
[320327062,1711291858342,-308.68,0.00019894,2]
[320327063,1711291858351,-500.0,0.00019894,2]
[320327064,1711291858361,-177.58,0.00019894,2]
[320327065,1711291858370,-573.68,0.00019894,2]
[320327066,1711291858379,-553.3,0.00019894,2]
[320327067,1711291858388,-500.0,0.00019894,2]
[320327068,1711291858397,-1598.37,0.00019894,2]
[320327069,1711291858406,-479.0,0.000199,2]
[320327070,1711291858415,-18190.60496739,0.000199,2]
[320327071,1711291858431,-1534.706499,0.000199,2]
[320327072,1711291858444,-319.31715993,0.000199,2]
[320327073,1711291858474,-65898.534,0.000199,2]
[320327074,1711291858487,-19869.0,0.000199,2]
[320327075,1711291858507,-91618.99868858,0.000199,2]
[320327078,1711291881591,653.58246756,9e-05,2]
[320327079,1711291893189,150.0,0.0001,2]
[320327080,1711291893211,150.0,0.0001,2]
[320327081,1711291893233,150.0,0.0001,2]
[320327082,1711291893256,150.0,0.0001,2]
[320327083,1711291893278,150.0,0.0001,2]
[320327084,1711291893300,43.4629328,0.0001,2]
[320327085,1711291903724,150.0,9e-05,2]
[320327086,1711291903743,291.3514455,9e-05,2]
[320327087,1711291903763,150.0,9e-05,2]
[320327088,1711291903783,150.0,9e-05,2]
[320327089,1711291903802,150.0,9e-05,2]
[320327090,1711291903822,150.0,9e-05,2]
[320327091,1711291904056,150.0,9e-05,2]
[320327092,1711291904078,150.0,9e-05,2]
[320327093,1711291904100,150.0,9e-05,2]
[320327094,1711291904120,150.0,9e-05,2]
[320327095,1711291904141,150.0,9e-05,2]
[320327096,1711291904162,150.0,9e-05,2]
[320327097,1711291904183,150.0,9e-05,2]
[320327098,1711291904203,150.0,9e-05,2]
[320327099,1711291904225,150.0,9e-05,2]
[320327100,1711291904255,17180.46200386,9e-05,2]
[320327101,1711291912192,150.0,9e-05,2]
[320327102,1711291912214,150.0,9e-05,2]
[320327103,1711291912237,150.0,9e-05,2]
[320327104,1711291912260,150.0,9e-05,2]
[320327105,1711291912284,150.0,9e-05,2]
[320327106,1711291912306,150.0,9e-05,2]
[320327107,1711291912328,150.0,9e-05,2]
[320327108,1711291912350,150.0,9e-05,2]
[320327109,1711291912372,150.0,9e-05,2]
[320327110,1711291912395,150.0,9e-05,2]
[320327111,1711291912417,150.0,9e-05,2]
[320327112,1711291912440,150.0,9e-05,2]
[320327113,1711291912471,482165.95552858,9e-05,2]
[320327114,1711291912498,539970.83732901,9e-05,2]
[320327115,1711291917072,31888.32640412,6.94e-05,2]
[320327116,1711291918964,150.0,8.999e-05,2]
[320327117,1711291918984,150.0,8.999e-05,2]
[320327118,1711291919007,10252.19086064,8.999e-05,2]
[320327119,1711291921637,150.0,9e-05,2]
[320327120,1711291921658,150.0,9e-05,2]
[320327121,1711291921680,150.0,9e-05,2]
[320327122,1711291921700,150.0,9e-05,2]
[320327123,1711291921720,150.0,9e-05,2]
[320327124,1711291921742,150.0,9e-05,2]
[320327125,1711291921763,150.0,9e-05,2]
[320327126,1711291921786,79.68177284,9e-05,2]
[320327127,1711291923713,286.87319615,9e-05,2]
[320327128,1711291924358,198.44287316,9e-05,2]
[320327129,1711291926194,400702.19225843,9e-05,2]
[320327130,1711291926919,450.0,9e-05,2]
[320327131,1711291927719,5629.63476801,9e-05,2]
[320327132,1711291929633,150.0,9e-05,2]
[320327133,1711291929652,150.0,9e-05,2]
[320327134,1711291932133,150.0,8.55e-05,2]
[320327135,1711291932153,150.0,8.55e-05,2]
[320327136,1711291932175,150.0,8.55e-05,2]
[320327137,1711291932196,150.0,8.55e-05,2]
[320327138,1711291932216,150.0,8.55e-05,2]
[320327139,1711291932237,150.0,8.55e-05,2]
[320327140,1711291932257,12.0487569,8.55e-05,2]
[320327141,1711291937724,675.43651637,9e-05,2]
[320327142,1711291943759,150.0,9e-05,2]
[320327143,1711291944117,150.0,9e-05,2]
[320327144,1711291944164,150.0,9e-05,2]
[320327145,1711291944185,150.0,9e-05,2]
[320327146,1711291944208,150.0,9e-05,2]
[320327147,1711291944229,150.0,9e-05,2]
[320327148,1711291944251,150.0,9e-05,2]
[320327149,1711291944273,150.0,9e-05,2]
[320327150,1711291944293,150.0,9e-05,2]
[320327151,1711291944315,150.0,9e-05,2]
[320327152,1711291959736,600.0,9e-05,2]
[320327153,1711291962205,150.0,9e-05,2]
[320327154,1711291962242,150.0,9e-05,2]
[320327155,1711291962264,150.0,9e-05,2]
[320327156,1711291962286,150.0,9e-05,2]
[320327157,1711291962307,150.0,9e-05,2]
[320327158,1711291962331,150.0,9e-05,2]
[320327159,1711291982265,168.49219842,0.0001,2]
[320327160,1711291984200,900.0,9e-05,2]
[320327161,1711292000043,150.0,0.000101,2]
[320327162,1711292000068,91.29641119,0.000101,2]
[320327165,1711292074174,207.77325379,0.0001,2]
[320327573,1711293031715,-484.31503574,0.00011969,2]
[320327574,1711293031724,-155.0,0.0001197,2]
[320327575,1711293031733,-17.72496426,0.00011971,2]
[320327576,1711293031864,-406.77668318,0.00011971,2]
[320327577,1711293031873,-176.19,0.00012211,2]
[320327578,1711293031882,-206.85207033,0.0001305,2]
[320327579,1711293031919,-560.88004955,0.0001305,2]
[320327580,1711293031931,-467.6799997,0.0001305,2]
[320327581,1711293031943,-2461.34819931,0.0001305,2]
[320327582,1711293031952,-802.62,0.00013296,2]
[320327583,1711293031961,-176.48157263,0.00013399,2]
[320327584,1711293031970,-769.10662388,0.000135,2]
[320327585,1711293031979,-211.68,0.00013699,2]
[320327586,1711293031988,-15922.4895102,0.00013699,2]
[320327587,1711293032000,-415.56500005,0.00013699,2]
[320327588,1711293032033,-7539.71600411,0.00013699,2]
[320327589,1711293032044,-9660.4,0.00013699,2]
[320327590,1711293032087,-692.0,0.00013699,2]
[320327592,1711293032098,-809.36898493,0.00013699,2]
[320327595,1711293032108,-1210.89312954,0.000137,2]
[320327597,1711293032117,-257.285975,0.00014521,2]
[320327599,1711293032126,-587.24614201,0.00014987,2]
[320327601,1711293032135,-1999.99637605,0.00014997,2]
[320327603,1711293032145,-19269.92503138,0.00014997,2]
[320327605,1711293032155,-1961.74337078,0.00014998,2]
[320327609,1711293032166,-5359.89892026,0.00014998,2]
[320327611,1711293032176,-1354.97232362,0.00014998,2]
[320327614,1711293032186,-703.54,0.00014998,2]
[320327617,1711293032196,-279.12974643,0.00014999,2]
[320328100,1711293037813,-1320.14258758,0.00014999,2]
[320328101,1711293037823,-1396.8947,0.00014999,2]
[320328102,1711293037833,-1135.5135334,0.00014999,2]
[320328103,1711293037843,-589.66364102,0.00015,2]
[320328104,1711293037854,-14.13707416,0.00015,2]
[320328105,1711293037864,-377.94914731,0.00015,2]
[320328106,1711293037875,-17175.40791435,0.00015,2]
[320328107,1711293037888,-3206.61422638,0.00015,2]
[320328108,1711293037897,-2555.67395293,0.00015,2]
[320328116,1711293038245,-445.74074877,0.00015,2]
[320328121,1711293040110,-1063.55982018,0.00015,2]
[320328122,1711293040122,-1034.355,0.00015,2]
[320328123,1711293040134,-2198.49212684,0.00015,2]
[320328124,1711293040146,-42622.63637694,0.00015,2]
[320328125,1711293040155,-250.0,0.00015188,2]
[320328126,1711293040164,-836.42,0.00015212,2]
[320328128,1711293040174,-471.3,0.00015221,2]
[320328130,1711293040183,-263.6,0.00015249,2]
[320328132,1711293040193,-378.1,0.00015272,2]
[320328134,1711293040202,-174.51,0.00015277,2]
[320328136,1711293040211,-528.7,0.00015309,2]
[320328138,1711293040220,-257.285975,0.00015342,2]
[320328140,1711293040229,-802.62,0.0001556,2]
[320328142,1711293040238,-167.37,0.00015831,2]
[320328144,1711293040247,-257.285975,0.00016164,2]
[320328146,1711293040256,-1222.10181458,0.000165,2]
[320328147,1711293040265,-186.84,0.00016549,2]
[320328150,1711293040274,-257.285975,0.00016986,2]
[320328152,1711293040284,-150.0,0.00016989,2]
[320328153,1711293040293,-150.0,0.00016989,2]
[320328154,1711293040302,-150.0,0.00016989,2]
[320328155,1711293040312,-150.0,0.00016989,2]
[320328156,1711293040322,-172.4,0.00017041,2]
[320328157,1711293040331,-471.3,0.00017124,2]
[320328158,1711293040341,-263.6,0.00017155,2]
[320328159,1711293040350,-378.1,0.00017181,2]
[320328160,1711293040359,-528.7,0.00017223,2]
[320328161,1711293040369,-1346.0539,0.00017798,2]
[320328162,1711293040378,-526.1625,0.00017798,2]
[320328163,1711293040387,-822.4309,0.00017798,2]
[320328164,1711293040396,-257.285975,0.00017808,2]
[320328165,1711293040406,-802.62,0.00017824,2]
[320328166,1711293040415,-157.0,0.00017835,2]
[320328167,1711293040425,-4317.27137511,0.00017845,2]
[320328169,1711293040435,-201.76585533,0.00017897,2]
[320328171,1711293040444,-22634.3463,0.00017898,2]
[320328173,1711293040453,-59422.31706651,0.00017898,2]
[320328180,1711293040509,-4996.0216856,0.00017898,2]
[320328182,1711293040521,-896.82497611,0.00017898,2]
[320328185,1711293040537,-538.75169905,0.00017898,2]